lending/lending_fUSD_20240417
["ID","MTS","AMOUNT","RATE_DAILY","PERIOD"]
[322828313,1713370240333,-1000.0,0.00017254,2]
[322828315,1713370240342,-4649.89,0.00017254,2]
[322828317,1713370240352,-1000.0,0.0001726,2]
[322828319,1713370240361,-931.0,0.0001726,2]
[322828321,1713370240370,-164.54,0.00017286,2]
[322828323,1713370240379,-504.234841,0.00017534,2]
[322828325,1713370240388,-1649.92478331,0.00017535,2]
[322828327,1713370240397,-1160.5709,0.00017822,2]
[322828329,1713370240407,-361.73401092,0.00017823,2]
[322828331,1713370240417,-3138.91737111,0.0001788,2]
[322828333,1713370240426,-3138.91737109,0.0001788,2]
[322828335,1713370240435,-3138.91737109,0.0001788,2]
[322828337,1713370240444,-1649.92478331,0.00017895,2]
[322828339,1713370240453,-1763.68617772,0.00017899,2]
[322828341,1713370240462,-10000.0,0.00017957,2]
[322828343,1713370240471,-65301.7262,0.00017999,2]
[322828345,1713370240480,-12596.29249602,0.00018,2]
[322828347,1713370240489,-155.0,0.00018,2]
[322828349,1713370240498,-1763.68617771,0.00018077,2]
[322828351,1713370240507,-541.0,0.00018083,2]
[322828353,1713370240516,-513.0,0.00018083,2]
[322828355,1713370240525,-155.0,0.00018095,2]
[322828357,1713370240534,-155.0,0.00018095,2]
[322828359,1713370240545,-538.77745672,0.00018095,2]
[322828361,1713370240555,-215.83533507,0.00018095,2]
[322828363,1713370240565,-155.0,0.00018096,2]
[322828365,1713370240575,-210.40439846,0.00018096,2]
[322828367,1713370240584,-155.0,0.00018097,2]
[322828369,1713370240594,-1775.09187772,0.00018098,2]
[322828371,1713370240603,-41759.2785,0.00018098,2]
[322828373,1713370240613,-1652.85598764,0.000181,2]
[322828375,1713370240622,-7451.5214,0.000181,2]
[322828377,1713370240631,-174.24710374,0.000181,2]
[322828379,1713370240640,-8733.61832896,0.000181,2]
[322828381,1713370240650,-1078.72,0.00018118,2]
[322828383,1713370240662,-3138.91737109,0.00018176,2]
[322828385,1713370240671,-336.79521569,0.00018197,2]
[322828387,1713370240680,-704.26951139,0.00018197,2]
[322828389,1713370240689,-2316.12566505,0.00018197,2]
[322828391,1713370240699,-164.07990913,0.00018197,2]
[322828393,1713370240708,-332.6275332,0.00018197,2]
[322828395,1713370240717,-192.47158963,0.00018197,2]
[322828397,1713370240726,-3352.25628214,0.00018197,2]
[322828399,1713370240735,-1814.13722347,0.00018197,2]
[322828401,1713370240744,-358.19314831,0.00018197,2]
[322828403,1713370240754,-770.82600876,0.00018198,2]
[322828405,1713370240763,-269.8797574,0.00018198,2]
[322828407,1713370240772,-2852.26310961,0.00018198,2]
[322828409,1713370240781,-3788.17934575,0.00018198,2]
[322828411,1713370240790,-156.89734001,0.00018198,2]
[322828413,1713370240802,-100000.0,0.000182,2]
[322828415,1713370240811,-1360.3254,0.000182,2]
[322828417,1713370240820,-2437.9143,0.000182,2]
[322828419,1713370240830,-500.0,0.000182,2]
[322828421,1713370240839,-296.72761363,0.00018222,2]
[322828423,1713370240848,-197.50929935,0.00018243,2]
[322828425,1713370240857,-267.32594056,0.00018243,2]
[322828427,1713370240867,-1649.92478331,0.00018255,2]
[322828429,1713370240876,-176.35323577,0.00018255,2]
[322828431,1713370240884,-1763.68617771,0.00018255,2]
[322828433,1713370240893,-361.73401086,0.00018263,2]
[322828435,1713370240902,-1030.5412573,0.00018299,5]
[322828437,1713370240911,-278643.84522153,0.000183,3]
[322828439,1713370240920,-8733.61832891,0.00018355,2]
[322828441,1713370240929,-504.234841,0.00018356,2]
[322828443,1713370240938,-8733.61832891,0.00018609,2]
[322828445,1713370240947,-197.50929928,0.00018623,2]
[322828447,1713370240956,-3138.91737109,0.0001863,2]
[322828449,1713370240967,-165.91,0.00018676,2]
[322828451,1713370240976,-198.23,0.00018686,2]
[322828453,1713370240986,-361.73401086,0.00018702,2]
[322828455,1713370240995,-181.96,0.0001876,2]
[322828457,1713370241005,-224.0,0.00018789,2]
[322828459,1713370241014,-477.21751933,0.00018798,2]
[322828461,1713370241023,-5721.0,0.00018807,2]
[322828463,1713370241032,-5885.0,0.00018807,2]
[322828465,1713370241043,-37653.0,0.00018807,2]
[322828466,1713370241052,-1737.0,0.00018807,2]
[322828469,1713370241061,-1054.0,0.00018807,2]
[322828470,1713370241071,-8733.61832891,0.00018864,2]
[322828473,1713370241080,-7500.0,0.000189,2]
[322828474,1713370241089,-513.0,0.00018905,2]
[322828477,1713370241098,-267.32594052,0.00018907,2]
[322828479,1713370241107,-325.32875202,0.00018998,2]
[322828480,1713370241116,-35216.94195786,0.00018998,2]
[322828483,1713370241126,-161.90159154,0.00018999,2]
[322828485,1713370241134,-625.0,0.00019,2]
[322828487,1713370241144,-919.03020033,0.00019,2]
[322828489,1713370241153,-2735.0,0.00019,2]
[322828491,1713370241163,-1550.0,0.00019,3]
[322828493,1713370241172,-467.27517404,0.00019,2]
[322828495,1713370241181,-299.13495942,0.00019,2]
[322828496,1713370241190,-400496.12811074,0.00019,2]
[322828498,1713370241199,-197.50929928,0.00019002,2]
[322828501,1713370241208,-3138.91737109,0.00019084,2]
[322828502,1713370241217,-2292.0,0.00019089,2]
[322828504,1713370241226,-461.0,0.00019089,2]
[322828506,1713370241235,-1001.811,0.00019089,2]
[322828508,1713370241244,-1391.0,0.00019089,2]
[322828510,1713370241254,-541.0,0.00019089,2]
[322828512,1713370241263,-1228.0,0.00019089,2]
[322828514,1713370241272,-1254.0,0.00019089,2]
[322828516,1713370241281,-609.0,0.00019089,2]
[322828518,1713370241290,-305.118,0.00019089,2]
[322828520,1713370241304,-439.219,0.00019089,2]
[322828523,1713370241314,-807.0,0.00019089,2]
[322828525,1713370241323,-2045.052,0.00019089,2]
[322828527,1713370241333,-401.703,0.00019089,2]
[322828528,1713370241342,-1473.0,0.00019089,2]
[322828531,1713370241352,-2442.0,0.00019089,2]
[322828533,1713370241362,-3079.0,0.00019089,2]
[322828535,1713370241371,-150.722,0.00019089,2]
[322828536,1713370241380,-150.62,0.00019089,2]
[322828539,1713370241389,-1639.0,0.00019089,2]
[322828540,1713370241399,-216.0,0.00019089,2]
[322828542,1713370241408,-444.967,0.00019089,2]
[322828544,1713370241417,-357.214,0.00019089,2]
[322828546,1713370241426,-1140.0,0.00019089,2]
[322828548,1713370241435,-477.2175193,0.00019098,2]
[322828550,1713370241444,-8733.61832891,0.00019118,2]
[322828552,1713370241453,-176.35323577,0.00019137,2]
[322828554,1713370241462,-361.73401086,0.00019142,2]
[322828556,1713370241472,-463.63270544,0.00019178,2]
[322828558,1713370241481,-225.09957668,0.00019178,2]
[322828560,1713370241491,-203.74317491,0.00019178,2]
[322828562,1713370241502,-865.3,0.00019178,2]
[322828564,1713370241511,-3376.06,0.00019178,2]
[322828566,1713370241521,-504.234841,0.00019178,2]
[322828568,1713370241530,-2370.12,0.0001918,2]
[322828570,1713370241540,-2370.12,0.0001918,2]
[322828571,1713370241556,-2370.12,0.0001918,2]
[322828572,1713370241565,-2370.12,0.0001918,2]
[322828573,1713370241574,-2370.12,0.0001918,2]
[322828574,1713370241584,-2370.12,0.0001918,2]
[322828575,1713370241593,-2370.12,0.0001918,2]
[322828576,1713370241602,-2370.12,0.0001918,2]
[322828577,1713370241611,-2370.12,0.0001918,2]
[322828579,1713370241620,-1394.97519973,0.0001924,2]
[322828581,1713370241630,-8733.61832891,0.00019373,2]
[322828583,1713370241639,-197.50929928,0.00019382,2]
[322828585,1713370241651,-477.2175193,0.00019399,2]
[322828587,1713370241660,-1000.0,0.00019411,2]
[322828589,1713370241668,-1176.45238383,0.000195,3]
[322828591,1713370241678,-3138.91737109,0.00019538,2]
[322828593,1713370241687,-296.72761363,0.00019561,2]
[322828595,1713370241697,-267.32594052,0.00019572,2]
[322828597,1713370241706,-361.73401086,0.00019581,2]
[322828599,1713370241715,-1394.97519973,0.00019617,2]
[322828601,1713370241724,-8733.61832891,0.00019627,2]
[322828603,1713370241734,-477.2175193,0.00019699,2]
[322828605,1713370241743,-276.60872332,0.00019723,2]
[322828607,1713370241752,-298.50232026,0.00019723,2]
[322828609,1713370241761,-187.27028764,0.00019723,2]
[322828611,1713370241770,-1019.53330274,0.00019723,2]
[322828613,1713370241779,-333.68785673,0.00019723,2]
[322828615,1713370241788,-155.2737892,0.00019723,2]
[322828616,1713370241800,-333.19529501,0.00019723,2]
[322828618,1713370241810,-169.58454161,0.00019723,2]
[322828621,1713370241819,-414.00362573,0.00019723,2]
[322828623,1713370241829,-182.296256,0.00019723,2]
[322828624,1713370241838,-155.0,0.00019723,2]
[322828627,1713370241847,-513.0,0.00019726,2]
[322828629,1713370241857,-1000.0,0.00019726,2]
[322828631,1713370241866,-197.50929928,0.00019761,2]
[322828633,1713370241876,-1394.97519973,0.00019794,2]
[322828635,1713370241885,-3384.98390663,0.00019872,2]
[322828636,1713370241895,-8733.61832891,0.00019882,2]
[322828638,1713370241904,-152.05125477,0.000199,2]
[322828640,1713370241913,-152.0512545,0.000199,2]
[322828642,1713370241923,-152.0512545,0.000199,2]
[322828644,1713370241933,-152.0512545,0.000199,2]
[322828647,1713370241943,-152.0512545,0.000199,2]
[322828648,1713370241952,-152.0512545,0.000199,2]
[322828649,1713370241961,-152.0512545,0.000199,2]
[322828650,1713370241971,-152.0512545,0.000199,2]
[322828651,1713370241980,-152.0512545,0.000199,2]
[322828652,1713370241990,-152.0512545,0.000199,2]
[322828653,1713370241999,-152.0512545,0.000199,2]
[322828654,1713370242009,-152.0512545,0.000199,2]
[322828655,1713370242018,-152.0512545,0.000199,2]
[322828656,1713370242027,-152.0512545,0.000199,2]
[322828657,1713370242036,-152.0512545,0.000199,2]
[322828658,1713370242050,-152.0512545,0.000199,2]
[322828659,1713370242060,-152.0512545,0.000199,2]
[322828660,1713370242069,-152.0512545,0.000199,2]
[322828661,1713370242079,-152.0512545,0.000199,2]
[322828662,1713370242088,-500.0,0.00019918,2]
[322828663,1713370242098,-500.0,0.00019927,2]
[322828664,1713370242107,-152.0512545,0.00019934,2]
[322828665,1713370242116,-500.0,0.00019936,2]
[322828666,1713370242125,-500.0,0.00019945,2]
[322828667,1713370242135,-570.57690158,0.00019948,2]
[322828668,1713370242144,-500.0,0.00019953,2]
[322828669,1713370242153,-500.0,0.00019962,2]
[322828670,1713370242162,-500.0,0.00019971,2]
[322828671,1713370242171,-500.0,0.0001998,2]
[322828672,1713370242181,-500.0,0.00019989,2]
[322828673,1713370242190,-3138.91737109,0.00019992,2]
[322828674,1713370242200,-4649.89,0.00019994,2]
[322828675,1713370242209,-500.0,0.00019997,2]
[322828676,1713370242218,-477.2175193,0.00019999,2]
[322828677,1713370242227,-982.77141677,0.0002,2]
[322828678,1713370242237,-529.34502087,0.0002,2]
[322828679,1713370242246,-186.07241725,0.0002,2]
[322828680,1713370242255,-3065.67342855,0.0002,2]
[322828681,1713370242264,-155.0,0.0002,2]
[322828682,1713370242273,-1256.5732188,0.0002,2]
[322828683,1713370242283,-4354.12,0.0002,2]
[322828684,1713370242295,-859.35539064,0.0002,2]
[322828685,1713370242304,-1507.1,0.0002,2]
[322828686,1713370242315,-8000.0,0.0002,2]
[322828687,1713370242325,-155.0,0.0002,2]
[322828688,1713370242336,-155.0,0.0002,2]
[322828689,1713370242347,-1765.57043751,0.0002,2]
[322828690,1713370242357,-641.27305155,0.0002,2]
[322828691,1713370242367,-751.96645107,0.0002,2]
[322828692,1713370242377,-2549.82078597,0.0002,2]
[322828693,1713370242387,-1001.38920306,0.0002,2]
[322828694,1713370242397,-3670.954,0.0002,2]
[322828695,1713370242406,-176.0,0.0002,2]
[322828696,1713370242415,-6219.13910648,0.0002,2]
[322828697,1713370242425,-20196.34585858,0.0002,2]
[322828698,1713370242435,-504.234841,0.0002,2]
[322828699,1713370242445,-500.0,0.00020006,2]
[322828700,1713370242455,-2370.12,0.00020014,2]
[322828701,1713370242466,-500.0,0.00020015,2]
[322828702,1713370242476,-176.35323577,0.00020018,2]
[322828703,1713370242486,-361.73401086,0.00020021,2]
[322828704,1713370242496,-500.0,0.00020024,2]
[322828705,1713370242506,-152.0512545,0.00020031,2]
[322828706,1713370242515,-500.0,0.00020033,2]
[322828707,1713370242526,-500.0,0.00020041,2]
[322828708,1713370242535,-500.0,0.0002005,2]
[322828709,1713370242548,-500.0,0.00020059,2]
[322828710,1713370242559,-500.0,0.00020068,2]
[322828711,1713370242570,-500.0,0.00020077,2]
[322828712,1713370242579,-500.0,0.00020085,2]
[322828713,1713370242590,-500.0,0.00020094,2]
[322828714,1713370242599,-500.0,0.00020103,2]
[322828715,1713370242609,-500.0,0.00020112,2]
[322828716,1713370242619,-500.0,0.00020121,2]
[322828717,1713370242629,-152.0512545,0.00020128,2]
[322828718,1713370242640,-500.0,0.00020129,2]
[322828720,1713370242650,-8733.61832891,0.00020136,2]
[322828722,1713370242660,-197.50929928,0.00020141,2]
[322828724,1713370242671,-150.89,0.00020192,2]
[322828726,1713370242682,-1394.97519973,0.000202,2]
[322828728,1713370242693,-152.0512545,0.00020224,2]
[322828729,1713370242702,-3384.98390663,0.00020229,2]
[322828730,1713370242712,-267.32594052,0.00020236,2]
[322828731,1713370242721,-477.2175193,0.00020299,2]
[322828732,1713370242730,-3384.98390663,0.00020318,2]
[322828733,1713370242741,-152.0512545,0.00020321,2]
[322828734,1713370242751,-1394.97519973,0.00020336,2]
[322828735,1713370242761,-1078.72,0.00020382,2]
[322828736,1713370242770,-8733.61832891,0.00020391,2]
[322828738,1713370242779,-119308.47612155,0.000204,2]
[322828739,1713370242788,-17659.0,0.000204,3]
[322828740,1713370242799,-150.0,0.000204,2]
[322828742,1713370242808,-152.0512545,0.00020417,2]
[322828743,1713370242817,-3138.91737109,0.00020446,2]
[322828744,1713370242826,-361.73401086,0.0002046,2]
[322828745,1713370242835,-204.0,0.000205,2]
[322828746,1713370242844,-150.0,0.000205,2]
[322828747,1713370242853,-5800.0,0.00020513,2]
[322828749,1713370242862,-152.0512545,0.00020514,2]
[322828750,1713370242871,-197.50929928,0.0002052,2]
[322828752,1713370242881,-5800.0,0.00020522,2]
[322828753,1713370242890,-5800.0,0.0002053,2]
[322828754,1713370242899,-5800.0,0.00020538,2]
[322828755,1713370242908,-5800.0,0.00020547,2]
[322828756,1713370242917,-513.0,0.00020548,2]
[322828758,1713370242927,-477.2175193,0.000206,2]
[322828759,1713370242937,-152.0512545,0.0002061,2]
[322828760,1713370242946,-8733.61832891,0.00020645,2]
[322828761,1713370242956,-1394.97519973,0.00020677,2]
[322828762,1713370242965,-775.0,0.000207,2]
[322828763,1713370242975,-152.0512545,0.00020707,2]
[322828764,1713370242984,-200.0,0.00020733,2]
[322828765,1713370242993,-198.23,0.00020763,2]
[322828766,1713370243002,-6933.09121626,0.0002079,2]
[322828767,1713370243012,-215.24678803,0.0002079,2]
[322828768,1713370243021,-2907.8137,0.0002079,2]
[322828769,1713370243030,-707.80456552,0.00020799,2]
[322828770,1713370243040,-3384.98390663,0.00020801,2]
[322828772,1713370243053,-152.0512545,0.00020803,2]
[322828774,1713370243063,-504.234841,0.00020822,2]
[322828776,1713370243072,-150.0,0.00020822,2]
[322828777,1713370243082,-200.0,0.00020832,2]
[322828778,1713370243091,-1000.0,0.00020832,2]
[322828779,1713370243100,-500.0,0.00020832,2]
[322828780,1713370243110,-500.0,0.00020832,2]
[322828781,1713370243119,-200.0,0.00020832,2]
[322828783,1713370243128,-150.0,0.00020836,2]
[322828784,1713370243138,-160.0,0.00020882,2]
[322828787,1713370243147,-160.0,0.00020891,2]
[322828789,1713370243156,-1030.5412573,0.00020899,5]
[322828790,1713370243166,-186.17337489,0.00020899,2]
[322828792,1713370243175,-186.17337489,0.000209,2]
[322828795,1713370243185,-477.2175193,0.000209,2]
[322828797,1713370243194,-4504.75408264,0.000209,2]
[322828809,1713370243433,-5495.24591736,0.000209,2]
[322828810,1713370243442,-502.75408263,0.000209,2]
[322828811,1713370243456,-12570.54964337,0.000209,2]
[322828812,1713370243465,-2213.15736601,0.000209,2]
[322828813,1713370243475,-197.50929928,0.000209,2]
[322828814,1713370243485,-267.32594052,0.000209,2]
[322828815,1713370243494,-14417.91044196,0.000209,5]
[322828816,1713370243513,-3241.08955804,0.000209,5]
[322828817,1713370243526,-361.73401086,0.000209,2]
[322828818,1713370243536,-160.0,0.000209,2]
[322828819,1713370243547,-296.72761363,0.000209,2]
[322828820,1713370243556,-174.24710374,0.000209,2]
[322828824,1713370243764,-152.0512545,0.000209,2]
[322828826,1713370243773,-810.15045923,0.000209,2]
[322828827,1713370243785,-4869.81432832,0.000209,2]
[322828828,1713370243801,-3014.74280342,0.000209,2]
[322828829,1713370243813,-38.91073794,0.000209,2]
[322828830,1713370243822,-496.62236871,0.000209,2]
[322828831,1713370243834,-294.48674834,0.000209,2]
[322828832,1713370243846,-468.89088295,0.000209,2]
[322828833,1713370243855,-514.01290803,0.000209,2]
[322828835,1713370243867,-1889.75004291,0.000209,2]
[322828837,1713370243879,-735.15442015,0.000209,2]
[322828838,1713370243888,-186.17337489,0.000209,2]
[322828839,1713370243897,-176.35323577,0.000209,2]
[322828840,1713370243906,-155.0,0.000209,2]
[322828841,1713370243916,-186.9578757,0.000209,2]
[322828842,1713370243925,-150.0,0.00020939,2]
[322828843,1713370243934,-1252.14322569,0.00020979,2]
[322828845,1713370243969,-353.53578846,0.00020979,2]
[322828850,1713370244088,-500.0,0.00019909,2]
[322828851,1713370244099,-150.0,0.00020684,2]
[322828852,1713370244108,-150.0,0.00020846,2]
[322828853,1713370244118,-2969.28104044,0.00020979,2]
[322828855,1713370244128,-521.4807044,0.00020988,2]
[322828856,1713370244137,-26.35105516,0.00020997,2]
[322828857,1713370244148,-302.09356369,0.00020997,2]
[322828858,1713370244166,-9974.61919948,0.00020997,2]
[322828859,1713370244870,-4876.9219129,0.0001818,2]
[322828860,1713370244880,-1172.49688711,0.00020997,2]
[322828861,1713370244892,-24760.24260146,0.00020997,2]
[322828862,1713370244901,-7725.1770413,0.00020997,2]
[322828863,1713370244910,-161.3283795,0.00020998,2]
[322828864,1713370244920,-2464.01890355,0.00020998,2]
[322828865,1713370244929,-1222.73838608,0.00020998,2]
[322828866,1713370244938,-155.0,0.00020998,2]
[322828867,1713370244948,-5540.1843977,0.00020998,2]
[322828868,1713370244958,-1059.54973418,0.00020998,2]
[322828869,1713370244968,-155.0,0.00020998,2]
[322828870,1713370244978,-155.0,0.00020998,2]
[322828871,1713370244987,-155.0,0.00020998,2]
[322828872,1713370244997,-155.0,0.00020998,2]
[322828873,1713370245008,-155.1384821,0.00020998,2]
[322828874,1713370245018,-155.0,0.00020998,2]
[322828875,1713370245027,-155.0,0.00020998,2]
[322828876,1713370245036,-709.08776493,0.00020998,2]
[322828877,1713370245049,-155.0,0.00020998,2]
[322828878,1713370245058,-155.0,0.00020998,2]
[322828879,1713370245067,-201.12373228,0.00020999,2]
[322828880,1713370245076,-3869.82317102,0.00020999,2]
[322828881,1713370245085,-69677.9177624,0.00020999,2]
[322828882,1713370245094,-5836.6670907,0.00020999,2]
[322828883,1713370245104,-186.58813403,0.00020999,2]
[322828884,1713370245114,-1030.5412573,0.00020999,5]
[322828885,1713370245123,-1030.5412573,0.00020999,5]
[322828886,1713370245133,-1030.54125732,0.00020999,5]
[322828887,1713370245142,-1030.5412573,0.00020999,5]
[322828888,1713370245151,-390.13979109,0.00021,2]
[322828889,1713370245161,-234.08387465,0.00021,2]
[322828890,1713370245170,-156.05591644,0.00021,2]
[322828891,1713370245180,-2145.98863276,0.00021,3]
[322828892,1713370245190,-240.01638079,0.00021,2]
[322828893,1713370245199,-222370.60726095,0.00021,2]
[322828894,1713370245210,-2172101.73873837,0.00021,2]
[322828897,1713370246316,-150.0,0.00020677,2]
[322828898,1713370246325,-150.0,0.00020849,2]
[322828899,1713370246334,-150.0,0.00020869,2]
[322828900,1713370246345,-4469.78007738,0.00020997,2]
[322828901,1713370246354,-162.319678,0.00020997,2]
[322828902,1713370246364,-6225.45844851,0.00021,2]
[322828905,1713370246868,-5341.48643618,0.00021,2]
[322828906,1713370246879,-120956.41340834,0.00021,2]
[322828907,1713370246890,-2734.71085841,0.00021,2]
[322828908,1713370246901,-909.18055416,0.00021,2]
[322828909,1713370246930,-150.0,0.00020645,2]
[322828910,1713370246940,-150.0,0.00020726,2]
[322828911,1713370246949,-365.65017,0.00021,2]
[322828912,1713370246960,-889.6085803,0.00021,2]
[322828913,1713370246994,-150.0,0.00019843,2]
[322828914,1713370247004,-1349.125,0.00021,2]
[322828915,1713370247015,-999.403317,0.00021,2]
[322828916,1713370247026,-1201.65,0.00021,2]
[322828917,1713370247041,-604.54,0.00021,2]
[322828918,1713370247062,-3186.40405392,0.00021,2]
[322828919,1713370380154,-500.0,0.00024329,15]
[322828920,1713370441202,-374.19,0.00024329,15]
[322828939,1713370476460,326.56,0.00026235,120]
[322828944,1713370956646,986.11,0.00014123,2]
[322828949,1713371432706,-444.05092147,0.00015859,2]
[322828950,1713371432716,-392.70624668,0.0001586,2]
[322828951,1713371432732,-12.44785452,0.0001586,2]
[322828952,1713371432741,-651.75688469,0.00015863,2]
[322828953,1713371432751,-500.0,0.00015865,2]
[322828954,1713371432760,-1812.09526079,0.0001587,2]
[322828955,1713371432772,-266.58133272,0.0001587,2]
[322828956,1713371432784,-309.63340649,0.0001587,2]
[322828957,1713371432793,-163.30833191,0.00015882,2]
[322828958,1713371432802,-566.7082616,0.00015958,2]
[322828959,1713371432813,-433.2917384,0.00015958,2]
[322828960,1713371432822,-119.0122616,0.00015959,4]
[322828961,1713371432853,-15172.87875734,0.00015959,4]
[322828975,1713371436964,936.8,0.00014267,2]
[322828998,1713371438326,-304.47,0.0001576,2]
[322829007,1713371438376,-388.48618111,0.0001576,2]
[322829010,1713371438388,-374.06351889,0.0001576,2]
[322829012,1713371438398,-125.93648111,0.00015959,4]
[322829597,1713371444045,-40366.73806565,0.00015959,4]
[322829599,1713371444055,-23900.0,0.0001596,2]
[322829601,1713371444065,-153.4,0.00015989,2]
[322829603,1713371444075,-499.99,0.00015989,2]
[322829605,1713371444084,-7925.45,0.00015989,2]
[322829607,1713371444094,-150.99,0.00015989,2]
[322829609,1713371444104,-198.23,0.00016011,2]
[322829611,1713371444113,-1530.17,0.00016011,2]
[322829613,1713371444122,-250.0,0.00016019,2]
[322829615,1713371444132,-150.0,0.00016082,2]
[322829617,1713371444141,-164.54,0.00016379,2]
[322829619,1713371444150,-936.8,0.00016531,2]
[322829621,1713371444160,-400.0,0.00016611,2]
[322829623,1713371444169,-167.89,0.00016688,2]
[322829625,1713371444179,-1705.75,0.00016712,2]
[322829627,1713371444188,-1000.0,0.00016713,2]
[322829630,1713371444197,-2500.0,0.00016713,2]
[322829631,1713371444207,-6163.0008,0.00016814,2]
[322829633,1713371444215,-544.4659,0.00016814,2]
[322829635,1713371444224,-163.30833189,0.0001683,2]
[322829636,1713371444234,-155.0,0.00016897,2]
[322829637,1713371444244,-281258.32647259,0.00016898,2]
[322829638,1713371444256,-6117.64664064,0.00016898,2]
[322829639,1713371444268,-3359.43023141,0.00016898,2]
[322829640,1713371444312,-282.86905612,0.00016898,2]
[322829641,1713371444323,-1316.71878285,0.00016898,2]
[322829642,1713371444339,-215475.91043774,0.00016898,2]
[322829644,1713371444512,-696.92,0.00016898,2]
[322829645,1713371444524,-387.68567418,0.00016898,2]
[322829646,1713371444536,-1321.0,0.00016898,2]
[322829647,1713371444584,-9132.15,0.00016898,2]
[322829648,1713371444603,-26453.22098302,0.00016898,2]
[322829649,1713371444613,-563.6279,0.00016899,2]
[322829650,1713371444622,-366.5789,0.00016899,2]
[322829651,1713371444631,-1000.0,0.00016899,2]
[322829652,1713371444640,-173.4349,0.00016914,2]
[322829653,1713371444649,-21296.4406,0.00016914,2]
[322829654,1713371444658,-150.0,0.00017063,2]
[322829655,1713371444667,-600.0,0.00017254,2]
[322829656,1713371444676,-2751.0,0.00017254,2]
[322829657,1713371444685,-167.13,0.00017254,2]
[322829658,1713371444694,-209.8011,0.00017265,2]
[322829659,1713371444703,-434.4046,0.00017265,2]
[322829660,1713371444712,-874.30567563,0.0001729,2]
[322829661,1713371444721,-2653.59848241,0.00017332,2]
[322829662,1713371444730,-2653.59848241,0.00017359,2]
[322829663,1713371444741,-2653.59848241,0.00017365,2]
[322829664,1713371444750,-2653.59848241,0.00017365,2]
[322829665,1713371444759,-2653.59848241,0.00017372,2]
[322829666,1713371444768,-2653.59848241,0.00017374,2]
[322829667,1713371444777,-2653.59848241,0.0001739,2]
[322829668,1713371444786,-2653.15,0.00017392,2]
[322829669,1713371444795,-2653.59848241,0.00017397,2]
[322829670,1713371444805,-2653.59848241,0.00017398,2]
[322829671,1713371444814,-326.56,0.0001749,2]
[322829672,1713371444823,-874.30567563,0.00017534,2]
[322829673,1713371444832,-186.49,0.00017754,2]
[322829674,1713371444842,-163.30833189,0.00017778,2]
[322829675,1713371444851,-222.54571022,0.00017778,2]
[322829676,1713371444860,-180.2409352,0.00017778,2]
[322829677,1713371444869,-697.1617006,0.00017778,2]
[322829678,1713371444878,-874.30567563,0.00017778,2]
[322829679,1713371444887,-7500.0,0.0001778,2]
[322829680,1713371444897,-331.632,0.00017857,2]
[322829681,1713371444906,-772.1329,0.00017878,2]
[322829682,1713371444915,-722066.0352,0.00017878,2]
[322829683,1713371444924,-6503.1778,0.00017878,2]
[322829684,1713371444933,-37492.24919042,0.0001788,2]
[322829685,1713371444942,-1417.52335794,0.0001788,2]
[322829686,1713371444954,-912.34002185,0.0001788,2]
[322829687,1713371444973,-1554.70179995,0.0001788,2]
[322829688,1713371444984,-528.097667,0.0001788,2]
[322829689,1713371444999,-33079.58634366,0.0001788,2]
[322829690,1713371445008,-37492.2491904,0.0001788,2]
[322829691,1713371445022,-23473.7979,0.00017886,2]
[322829692,1713371445031,-155385.2423,0.00017886,2]
[322829693,1713371445041,-165.11,0.00017895,2]
[322829694,1713371445050,-500.0,0.00017899,2]
[322829695,1713371445061,-70576.45837196,0.00017986,2]
[322829696,1713371445070,-155.0,0.00018,2]
[322829697,1713371445079,-697.16170056,0.00018062,2]
[322829698,1713371445088,-2068.3354,0.0001808,2]
[322829699,1713371445099,-8968.0208,0.0001808,2]